Cogmind - Beta 17.1 @@@ ROGUE MODE // 2026.09.13 @ 15:27:14 Player: Caluan Result: Destroyed by Y-54 Guardian with Flak Gun Performance ------------- Evolutions (4) 2000 Regions Visited (11) 2200 Robots Destroyed (175) 875 Value Destroyed (6078) 6078 Prototype IDs (18) 360 Alien Tech Used (0) 0 Bonus (477) 477 TOTAL SCORE: 11990 Bonus ------- High Alert Combat Kills 139 Follower Combat Kills 60 Met Data Miner 300 Friendly Fire -22 Cogmind --------- Core Integrity 0/850 Matter 218/300 Energy 80/100 System Corruption 9% Temperature Cool (18) Movement Core (1350) Ox26 Location -6/Factory Parts ------- > --- POWER (1) -------- (None) > --- PROPULSION (3) --- (None) > --- UTILITY (8) ------ Huge Storage Unit Armor Integrity Analyzer System Shield > --- WEAPON (3) ------- (None) > --- INVENTORY (25) --- Light Angular Momentum Engine Carbon-fiber Leg Huge Storage Unit High-capacity Battery (149) High-capacity Matter Pod (200) Kinecellerator Force Field Advanced System Shield Advanced System Shield High-powered Tractor Beam Heavy Assault Rifle Datajack Heavy Flail Peak State ------------ > --- POWER ------------ Micro Nuclear Core > --- PROPULSION ------- Advanced Treads Medium Treads Medium Treads > --- UTILITY ---------- Advanced Heat Sink Improved Cooling System Huge Storage Unit Improved Salvage Targeting Computer Armor Integrity Analyzer Improved Medium Armor Plating System Shield System Shield > --- WEAPON ----------- Heavy Laser Heavy Laser Gauss Rifle > --- INVENTORY -------- Light Angular Momentum Engine Medium Treads Medium Treads Improved Heat Sink Huge Storage Unit High-capacity Battery High-capacity Matter Pod Kinecellerator Force Field High-powered Tractor Beam Heavy Laser Heavy Laser Heavy Assault Rifle Missile Launcher Missile Launcher Datajack Heavy Flail [Rating: 60] Favorites ----------- Power Improved Deuterium Engine Engine Improved Deuterium Engine Power Core Micro Nuclear Core Propulsion Advanced Treads Treads Advanced Treads Utility Hacking Suite Device Transmission Jammer Storage Huge Storage Unit Processor Improved Salvage Targeting Computer Hackware Hacking Suite Protection Improved Medium Armor Plating Weapon Flak Gun Energy Gun Heavy Laser Energy Cannon Beam Cannon Ballistic Gun Flak Gun Launcher Missile Launcher Impact Weapon Heavy Flail Build | -11 -10 -10 -9 -9 -8 -7 -7 -7 -7 -6 -6 ------- Run | Yrd Mat Min Mat Min Mat Fac Low Low Dat Pro Fac Slots Evolved 8 | . . . 2 . 2 2 . . . . 2 Power . | . . . . . . . . . . . . Propulsion 1 | . . . 1 . . . . . . . . Utility 6 | . . . 1 . 1 2 . . . . 2 Weapon 1 | . . . . . 1 . . . . . . Parts Attached 104 | 6 4 3 14 . 22 16 . . . 11 28 Power 13 | 1 . 2 2 . 3 1 . . . 1 3 Engine 12 | 1 . 2 2 . 3 1 . . . 1 2 Core 1 | . . . . . . . . . . . 1 Reactor . | . . . . . . . . . . . . Propulsion 32 | 2 . 1 5 . 10 4 . . . 3 7 Treads 32 | 2 . 1 5 . 10 4 . . . 3 7 Leg . | . . . . . . . . . . . . Wheel . | . . . . . . . . . . . . Hover . | . . . . . . . . . . . . Flight . | . . . . . . . . . . . . Utility 25 | 1 1 . 4 . 1 6 . . . 3 9 Device 7 | . . . . . . 1 . . . 1 5 Storage 4 | 1 . . 2 . . . . . . . 1 Processor 5 | . 1 . . . 1 2 . . . . 1 Hackware 5 | . . . 2 . . 2 . . . . 1 Protection 4 | . . . . . . 1 . . . 2 1 Artifact . | . . . . . . . . . . . . Weapon 34 | 2 3 . 3 . 8 5 . . . 4 9 Energy Gun 6 | . . . . . . . . . . . 6 Energy Cannon 1 | . 1 . . . . . . . . . . Ballistic Gun 22 | 2 2 . 3 . 6 5 . . . 2 2 Ballistic Cannon . | . . . . . . . . . . . . Launcher 4 | . . . . . 2 . . . . 2 . Special Weapon . | . . . . . . . . . . . . Impact Weapon 1 | . . . . . . . . . . . 1 Slashing Weapon . | . . . . . . . . . . . . Piercing Weapon . | . . . . . . . . . . . . Special Melee Weapon . | . . . . . . . . . . . . Unidentified Prototypes 3 | . . . 3 . . . . . . . . Corrupted Parts 1 | . . . . . . . . . . . 1 System Corruption 1 | . . . . . . . . . . . 1 Parts Lost 70 | . 2 . 1 . 14 5 . . . 8 40 Power 8 | . 1 . . . 2 . . . . 1 4 Propulsion 24 | . . . 1 . 6 2 . . . 3 12 Utility 14 | . . . . . . 1 . . . 2 11 Weapon 24 | . 1 . . . 6 2 . . . 2 13 Highest Loss Streak 16 | . 2 . 1 . 8 2 . . . 6 16 To Critical Strikes 2 | . . . 1 . . . . . . . 1 Average Backups 19 | . 4 7 14 22 22 24 24 24 24 18 19 Power . | . . . . . . 1 2 2 2 1 1 Propulsion 5 | . . 1 3 4 6 8 8 8 8 5 3 Utility 6 | . . 1 4 5 5 6 8 8 8 7 8 Weapon 6 | . 2 4 6 13 10 6 5 5 5 3 4 Tool/Special . | . . . . . . . . . . . . Unused Backups 22 | . . 2 2 . 5 1 . . . . 12 Power 1 | . . . . . . . . . . . 1 Propulsion 1 | . . . . . . . . . . . 1 Utility 9 | . . . 1 . . 1 . . . . 7 Weapon 10 | . . 2 1 . 5 . . . . . 2 Tool/Special 1 | . . . . . . . . . . . 1 Average Slot Usage (%) 96 | . 81 98 98 100 97 98 100 100 100 99 91 Engine 7 | . 4 12 11 11 8 6 7 7 7 7 4 Treads 25 | . 26 28 32 33 26 22 23 23 23 23 18 Device 1 | . . . . . . . . . . 5 6 Storage 8 | . 14 14 11 11 9 7 7 7 7 7 6 Processor 11 | . 10 14 7 . 9 11 15 15 15 15 16 Hackware 16 | . . . 12 22 18 22 23 23 23 14 11 Protection 1 | . . . . . . 1 . . . 1 5 Ballistic Gun 21 | . 21 28 22 22 25 22 23 23 23 22 14 Peak Build Rating 60 | 6 9 16 24 24 35 50 49 49 49 49 60 Average Rating 37 | 3 6 11 21 24 28 46 49 49 49 47 53 On Entrance 29 | . 6 9 16 24 24 35 49 49 49 49 48 Avg Prop Armor Cover (%) . | . . . . . . . . . . . . Naked Turns . | . . . . . . . . . . . . Heaviest Build 115 | 10 11 20 94 94 98 104 101 101 101 113 115 Greatest Support 78 | 40 40 42 62 62 64 72 66 66 66 66 78 Greatest Overweight (x) 4 | . . . 1 1 4 1 1 1 1 1 1 Average Overweight (x) . | . . . . 1 1 1 1 1 1 1 1 Largest Inventory Capacity 25 | 8 8 8 25 25 25 25 25 25 25 25 25 Average Capacity 22 | 5 8 8 15 25 25 25 25 25 25 25 25 Most Carried 25 | 1 8 8 22 24 25 25 24 24 24 24 25 Average Carried 19 | . 4 7 14 22 22 24 24 24 24 18 19 Final Capacity 25 | 8 8 8 25 25 25 25 25 25 25 25 25 Final Carried 25 | . 8 8 22 24 25 24 24 24 24 17 13 Class Distribution -------------------- 51% | Hacker-Gunner 17% | Mutant 15% | Hacker-Mutant 11% | Hacker-Tank Dominant Class ---------------- Mutant | -10/Materials Mutant | -10/Mines Mutant | -9/Materials Hacker-Mutant | -9/Mines Hacker-Gunner | -8/Materials Hacker-Gunner | -7/Factory Hacker-Gunner | -7/Lower Caves Hacker-Gunner | -7/Lower Caves Hacker-Gunner | -7/Data Miner Hacker-Gunner | -6/Proximity Caves Hacker-Gunner | -6/Factory Resources | -11 -10 -10 -9 -9 -8 -7 -7 -7 -7 -6 -6 ----------- Run | Yrd Mat Min Mat Min Mat Fac Low Low Dat Pro Fac Matter Collected 4534 | 140 204 295 526 148 661 1090 156 84 . 419 811 Remotely . | . . . . . . . . . . . . Salvage Created 7036 | . 289 224 824 160 1372 1519 141 205 . 318 1984 Parts 406 | . 12 14 52 19 91 97 9 8 . 16 88 Haulers Intercepted 11 | . 2 . 5 . 2 . . . . . 2 Recyclers Shooed 7 | . 1 . . . 3 . . . . . 3 Parts Field Recycled . | . . . . . . . . . . . . Retrieved Matter . | . . . . . . . . . . . . Parts Self-Destructed 33 | . . . . . . . 13 8 . 12 . Prevented . | . . . . . . . . . . . . Parts Restored . | . . . . . . . . . . . . Kills | -11 -10 -10 -9 -9 -8 -7 -7 -7 -7 -6 -6 ------- Run | Yrd Mat Min Mat Min Mat Fac Low Low Dat Pro Fac Combat Hostiles Destroyed 139 | . 5 5 20 10 27 24 4 4 . 9 31 Guns 125 | . 5 5 20 10 18 24 4 4 . 6 29 AOE 14 | . . . . . 9 . . . . 3 2 Classes Destroyed 17 | . 5 . 3 . 4 3 . . . 2 . Worker 11 | . 1 . . . 6 2 . . . . 2 Builder 3 | . . . . . 1 . . . . . 2 Tunneler 1 | . . . . . . 1 . . . . . Hauler 11 | . 2 . 5 . 2 . . . . . 2 Recycler 3 | . 1 . . . . 2 . . . . . Operator 2 | . . . 1 . . 1 . . . . . Watcher 5 | . . . 2 . 2 1 . . . . . Swarmer 32 | . 3 . 10 10 6 . 2 . . 1 . Grunt 64 | . 2 5 7 . 13 13 1 2 . 5 16 Brawler 2 | . . . . . . . . . . 1 1 Duelist 4 | . . . . . . 2 . . . 1 1 Sentry 12 | . . . 3 . 4 2 . 1 . . 2 Specialist 6 | . . . . . 2 . . . . . 4 Hunter 6 | . . . . . 1 . 1 1 . . 3 Programmer 10 | . . . . . . 7 . . . . 3 Heavy 1 | . . . . . 1 . . . . . . Behemoth 2 | . . . . . . . . . . 1 1 Best Kill Streak 14 | . 4 2 3 4 14 6 2 3 . 4 6 Combat Bots Only 10 | . 3 2 3 4 10 4 2 3 . 4 4 Max Kills in Single Turn 2 | . 1 2 2 1 2 2 2 1 . 2 2 Gunslinging 1 | . . 1 1 . . . 1 . . . . Exploded 2 | . . . . . 2 . . . . 2 1 Melee . | . . . . . . . . . . . . Uniques/NPCs Destroyed . | . . . . . . . . . . . . Combat | -11 -10 -10 -9 -9 -8 -7 -7 -7 -7 -6 -6 -------- Run | Yrd Mat Min Mat Min Mat Fac Low Low Dat Pro Fac Hostile Shots Fired 1152 | . 58 25 84 47 189 170 27 35 . 62 455 Missed 339 | . 16 8 25 16 56 46 9 11 . 18 134 Hits 813 | . 42 17 59 31 133 124 18 24 . 44 321 Melee 17 | . . . . . . 8 . . . 6 3 Projectile 796 | . 42 17 59 31 133 116 18 24 . 38 318 AOE 2 | . . . . . . . . . . . 2 Critical Strikes 22 | . 1 . 2 . 6 6 . 1 . 1 5 Part Disruptions 2 | . . . . . . . . . . . 2 Damage Taken 12571 | . 468 270 718 253 2351 1685 275 218 . 1121 5212 Core 2017 | . 82 59 106 16 387 273 45 22 . 175 852 Absorbed by Shields . | . . . . . . . . . . . . Regen/Repaired (Parts) 689 | . 130 . . . 203 356 . . . . . Core Remaining (%) 53 | 100 . 43 . 69 29 . . . . 26 . Volleys Fired 404 | . 45 11 60 21 60 63 13 7 . 21 103 Largest 3 | . 2 2 2 2 3 3 3 3 . 3 3 Hottest 207 | . 80 46 46 46 76 79 79 79 . 100 207 Shots Fired 993 | . 67 23 120 42 161 189 39 21 . 59 272 Gun 966 | . 60 23 120 42 152 189 39 21 . 53 267 Cannon 7 | . 7 . . . . . . . . . . Launcher 20 | . . . . . 9 . . . . 6 5 Special . | . . . . . . . . . . . . Kinetic 828 | . 60 23 120 42 152 189 39 21 . 53 129 Thermal 129 | . 7 . . . . . . . . . 122 Explosive 20 | . . . . . 9 . . . . 6 5 Electromagnetic 16 | . . . . . . . . . . . 16 Robot Hit Streak 26 | . 12 9 19 8 22 23 4 9 . 7 26 Robot Miss Streak 7 | . 3 3 2 6 4 3 7 2 . 6 5 Penetration Max 1 | . . . . . . 1 . . . . 1 Secondary Targets 29 | . . 3 7 1 7 1 1 1 . 2 6 Max Gunslinging Chain 1 | . . 1 1 1 1 1 1 1 . 1 1 Shots Hit Robots 753 | . 47 15 87 24 126 149 25 18 . 45 217 Core Hits 523 | . 15 8 39 10 92 74 14 15 . 44 212 Critical Kills 1 | . . . . . . 1 . . . . . Critical Parts Destroyed 3 | . . . . . . 2 . . . . 1 Critical Strikes 7 | . . . . . . 3 . . . . 4 Burn 3 | . . . . . . . . . . . 3 Destroy 4 | . . . . . . 3 . . . . 1 Melee Attacks 3 | . . . . . . . . . . . 3 Impact 3 | . . . . . . . . . . . 3 Slashing . | . . . . . . . . . . . . Piercing . | . . . . . . . . . . . . Sneak Attacks . | . . . . . . . . . . . . Combat Hostiles . | . . . . . . . . . . . . Follow-up Attacks . | . . . . . . . . . . . . Damage Inflicted 15128 | . 430 245 1407 384 2685 2897 323 302 . 1320 5135 Guns 12889 | . 368 237 1383 359 1740 2805 323 302 . 778 4594 Cannons 52 | . 52 . . . . . . . . . . Explosions 1975 | . . . . . 917 . . . . 542 516 Melee . | . . . . . . . . . . . . Ramming 212 | . 10 8 24 25 28 92 . . . . 25 Kinetic 10812 | . 368 237 1383 359 1740 2805 323 302 . 778 2517 Thermal 1966 | . 52 . . . . . . . . . 1914 Explosive 1975 | . . . . . 917 . . . . 542 516 Electromagnetic 163 | . . . . . . . . . . . 163 Impact . | . . . . . . . . . . . . Slashing . | . . . . . . . . . . . . Piercing . | . . . . . . . . . . . . Highest Corruption 9 | . 2 2 . . . . . . . . 9 Average Corruption 2 | . 2 2 . . . . . . . . 5 Corruption Purged . | . . . . . . . . . . . . Corruption Blocked 4 | . . . . . . 2 . . . . 2 Effects 17 | . 5 3 . . . . . . . . 9 Message Errors 2 | . . . . . . . . . . . 2 Matter Fused 3 | . . 1 . . . . . . . . 2 Heat Flow Errors 1 | . 1 . . . . . . . . . . Energy Discharges 4 | . 2 1 . . . . . . . . 1 Parts Fused 1 | . . . . . . . . . . . 1 Data Loss (minor) 4 | . 2 . . . . . . . . . 2 Misfires 1 | . . 1 . . . . . . . . . Weapon Failures 1 | . . . . . . . . . . . 1 Overload Shots . | . . . . . . . . . . . . Overflow Damage 14 | . . . . 3 1 9 . . . . 1 Projectiles . | . . . . . . . . . . . . Explosions 1 | . . . . . 1 . . . . . . Melee 13 | . . . . 3 . 9 . . . . 1 Knockbacks 1 | . . . 1 . . . . . . . . Impact 1 | . . . 1 . . . . . . . . Kinetic . | . . . . . . . . . . . . Secondary . | . . . . . . . . . . . . Self-Inflicted Damage 140 | . . . . . 48 . . . . . 92 Shots 3 | . . . . . 1 . . . . . 2 Rammed 22 | . 4 2 4 1 4 3 . . . . 4 Targets Rammed 27 | . 6 2 5 1 4 5 . . . . 4 Kicked . | . . . . . . . . . . . . Crushed 5 | . 2 . 1 . . 2 . . . . . Highest Temperature 339 | . 219 14 17 . 85 39 15 66 . 334 339 Average Temperature 54 | . 40 5 6 . 30 13 10 42 . 97 85 Received Heat Transfer 3714 | . 219 114 234 . 927 462 27 102 . 480 1149 Effects 4 | . . . . . . . . . . . 4 Interference 4 | . . . . . . . . . . . 4 Siege Activations . | . . . . . . . . . . . . Martial Activations . | . . . . . . . . . . . . Shielding Activations . | . . . . . . . . . . . . Robots Disrupted 2 | . . . . . . . . . . . 2 Combat Hostiles 2 | . . . . . . . . . . . 2 Robots Corrupted 2 | . . . . . . 1 . . . . 1 Combat Hostiles . | . . . . . . . . . . . . Parts Fried 2 | . . . . . . 1 . . . . 1 Impact Corruptions 3 | . . . . 1 . 1 . . . . 1 Robots Melted 1 | . . . . . . . . . . . 1 Combat Hostiles . | . . . . . . . . . . . . Parts Melted 8 | . . . . . . . . . . . 8 Heat Transferred 4033 | . 111 . . . . . . . . . 3922 Parts Sabotaged . | . . . . . . . . . . . . Parts Stolen . | . . . . . . . . . . . . Parts Stripped . | . . . . . . . . . . . . Power Chain Reactions . | . . . . . . . . . . . . Alert | -11 -10 -10 -9 -9 -8 -7 -7 -7 -7 -6 -6 ------- Run | Yrd Mat Min Mat Min Mat Fac Low Low Dat Pro Fac Maximum Alert Level 2 | . . . . 1 2 1 . . . . 1 Low Security (%) 83 | 100 100 100 100 98 42 84 . . . . 79 Level 1 9 | . . . . 1 4 15 . . . . 20 Level 2 7 | . . . . . 52 . . . . . . Level 3 . | . . . . . . . . . . . . Level 4 . | . . . . . . . . . . . . Level 5 . | . . . . . . . . . . . . High Security . | . . . . . . . . . . . . Max Security . | . . . . . . . . . . . . Peak Influence 551 | . 60 50 144 207 551 242 . . . . 382 Initial 205 | . . . 7 27 . 205 . . . . 14 Average 109 | . 10 20 53 73 271 126 . . . . 78 Influence Increases 4361 | . 165 135 554 290 964 790 100 90 . 287 986 Destroy 0b10 Robot/C 2820 | . 100 100 400 200 540 480 80 80 . 220 620 Destroy 0b10 Robot/NC 180 | . 20 . 40 . 55 35 . . . . 30 Destroy Leader 660 | . 24 20 94 30 138 132 20 10 . 30 162 Allied During Kill 22 | . . . . . . . . . . 22 . Successful Hack 159 | . 21 . 19 . 21 59 . . . . 39 Disable Machine 90 | . . . . . 30 60 . . . . . Destroy Structure 115 | . . . 1 . 60 24 . . . . 30 Lose Combat Pursuer 315 | . . 15 . 60 120 . . . . 15 105 Influence Decreases 4047 | . 165 115 503 361 512 1041 279 112 . 263 696 Entered New Map 394 | . . . 13 44 . 247 75 5 . . 10 Time Decay 2896 | . 155 115 484 317 372 594 204 107 . 253 295 Lost Part 596 | . 10 . 6 . 140 50 . . . 10 380 Lost Ally 11 | . . . . . . . . . . . 11 Purge Threat 150 | . . . . . . 150 . . . . . Squads Dispatched 32 | . . 1 3 . 4 10 . . . . 14 Investigation 2 | . . 1 1 . . . . . . . . Extermination 11 | . . . . . . 8 . . . . 3 Reinforcement 15 | . . . 2 . 4 2 . . . . 7 Assault . | . . . . . . . . . . . . Garrison 4 | . . . . . . . . . . . 4 Intercept . | . . . . . . . . . . . . Searches Triggered . | . . . . . . . . . . . . Construction Impeded 1 | . . . . . 1 . . . . . . Haulers Reinforced 1 | . . . . . . . . . . . 1 Active Scanning Responses . | . . . . . . . . . . . . Cargo Convoy Interrupts . | . . . . . . . . . . . . Stealth | -11 -10 -10 -9 -9 -8 -7 -7 -7 -7 -6 -6 --------- Run | Yrd Mat Min Mat Min Mat Fac Low Low Dat Pro Fac Distress Signals 10 | . . . 1 . 6 . . . . . 3 Communications Jammed . | . . . . . . . . . . . . Distress Signals . | . . . . . . . . . . . . Times Spotted 210 | . 9 7 35 13 41 26 4 4 . 12 59 Peak Tracking Total 10 | . 3 3 5 4 10 4 2 3 . 4 8 Tactical Retreats 12 | . . 1 . 3 4 . . . . 1 3 Traps | -11 -10 -10 -9 -9 -8 -7 -7 -7 -7 -6 -6 ------- Run | Yrd Mat Min Mat Min Mat Fac Low Low Dat Pro Fac Traps Triggered 9 | . 1 1 3 . 3 . . . . . 1 Indirectly . | . . . . . . . . . . . . Trap Hack Attempts . | . . . . . . . . . . . . Triggered . | . . . . . . . . . . . . Disarmed 2 | . . . . . . 2 . . . . . Reprogrammed . | . . . . . . . . . . . . Reused . | . . . . . . . . . . . . Traps Extracted . | . . . . . . . . . . . . Installed . | . . . . . . . . . . . . Triggered . | . . . . . . . . . . . . Machines | -11 -10 -10 -9 -9 -8 -7 -7 -7 -7 -6 -6 ---------- Run | Yrd Mat Min Mat Min Mat Fac Low Low Dat Pro Fac Machines Disabled 6 | . . . . . 2 4 . . . . . Max in Single Turn 2 | . . . . . 1 2 . . . . . Garrison Access 1 | . . . . . 1 . . . . . . Machines Repaired . | . . . . . . . . . . . . Machines Dismantled . | . . . . . . . . . . . . Machines Sabotaged . | . . . . . . . . . . . . Overloaded Fab Kills . | . . . . . . . . . . . . Hacking | -11 -10 -10 -9 -9 -8 -7 -7 -7 -7 -6 -6 --------- Run | Yrd Mat Min Mat Min Mat Fac Low Low Dat Pro Fac Machines Accessed 40 | . 6 3 5 . 5 11 . . 4 . 6 Terminals 21 | . 5 1 3 . 3 7 . . . . 2 Fabricators 3 | . . . . . . 2 . . . . 1 Repair Stations 4 | . 1 . . . 1 1 . . . . 1 Recycling Units 2 | . . . 1 . . . . . . . 1 Scanalyzers 3 | . . . 1 . . 1 . . . . 1 Garrison Access 1 | . . . . . 1 . . . . . . Total Hacks 126 | . 14 3 12 . 17 38 . . 31 . 11 Successful 96 | . 11 3 7 . 12 27 . . 31 . 5 Failed 29 | . 3 . 5 . 5 10 . . . . 6 Catastrophic 4 | . . . 2 . . . . . . . 2 Database Lockouts 1 | . . . . . . 1 . . . . . Manual 53 | . 7 . 9 . 7 20 . . . . 10 Terminals 63 | . 10 1 9 . 12 25 . . . . 6 Fabricators 3 | . . . . . . 2 . . . . 1 Repair Stations 17 | . 4 . . . 4 8 . . . . 1 Recycling Units 3 | . . . 1 . . . . . . . 2 Scanalyzers 6 | . . . 2 . . 3 . . . . 1 Garrison Access 1 | . . . . . 1 . . . . . . Terminal Hacks 52 | . 3 3 1 . 5 8 . . 31 . 1 Record 11 | . . . . . . . . . 11 . . Part Schematic 13 | . . . 1 . . . . . 12 . . Robot Schematic 5 | . . . . . . . . . 5 . . Prototype ID Bank 5 | . . . . . 1 1 . . 3 . . Open Door 2 | . . 2 . . . . . . . . . Level Access Points 3 | . . . . . 3 . . . . . . Branch Access Points 2 | . . . . . . 1 . . . . 1 Terminal Index 1 | . . . . . . 1 . . . . . Fabricator Index 1 | . . . . . . 1 . . . . . Scanalyzer Index 1 | . 1 . . . . . . . . . . Alert Level 1 | . . . . . . 1 . . . . . Unreport Threat 1 | . . . . . . 1 . . . . . Locate Traps 1 | . . . . . . 1 . . . . . Disarm Traps 1 | . . . . . . 1 . . . . . Dispatch Records 1 | . . 1 . . . . . . . . . Transport Status 1 | . 1 . . . . . . . . . . Registered Components 2 | . 1 . . . 1 . . . . . . Fabricator Hacks . | . . . . . . . . . . . . Repair Station Hacks 16 | . 4 . . . 4 8 . . . . . Scan Component 8 | . 2 . . . 2 4 . . . . . Repair 8 | . 2 . . . 2 4 . . . . . Recycling Unit Hacks 1 | . . . 1 . . . . . . . . Report Inventory 1 | . . . 1 . . . . . . . . Scanalyzer 4 | . . . 2 . . 1 . . . . 1 Retrieve Study 4 | . . . 2 . . 1 . . . . 1 Garrison Access Hacks 1 | . . . . . 1 . . . . . . Seal Access 1 | . . . . . 1 . . . . . . Unauthorized Hacks 22 | . 4 . 3 . 2 10 . . . . 3 Terminals 18 | . 4 . 3 . 2 8 . . . . 1 Track 2 | . . . . . . 2 . . . . . Botnet 16 | . 4 . 3 . 2 6 . . . . 1 Fabricators 3 | . . . . . . 2 . . . . 1 Fabnet 3 | . . . . . . 2 . . . . 1 Repair Stations 1 | . . . . . . . . . . . 1 Mechanics 1 | . . . . . . . . . . . 1 Recycling Units . | . . . . . . . . . . . . Scanalyzers . | . . . . . . . . . . . . Garrison Access . | . . . . . . . . . . . . Data Cores Recovered . | . . . . . . . . . . . . Used . | . . . . . . . . . . . . Hacking Detections 25 | . 4 . 3 . 4 10 . . . . 4 Full Trace Events . | . . . . . . . . . . . . Feedback Events . | . . . . . . . . . . . . Feedback Blocked . | . . . . . . . . . . . . Robot Schematics Acquired 5 | . . . . . . . . . 5 . . Robots Built . | . . . . . . . . . . . . Authchips . | . . . . . . . . . . . . Time . | . . . . . . . . . . . . Total Robot Build Rating . | . . . . . . . . . . . . Part Schematics Acquired 13 | . . . 1 . . . . . 12 . . Parts Built . | . . . . . . . . . . . . Authchips . | . . . . . . . . . . . . Time . | . . . . . . . . . . . . Total Part Build Rating . | . . . . . . . . . . . . Part Studies Acquired 4 | . . . 2 . . 1 . . . . 1 Parts Repaired 8 | . 2 . . . 2 4 . . . . . Time 317 | . 52 . . . 89 176 . . . . . Parts Recycled . | . . . . . . . . . . . . Recycled Matter . | . . . . . . . . . . . . Retrieved Matter . | . . . . . . . . . . . . Retrieved Components . | . . . . . . . . . . . . Parts Scanalyzed . | . . . . . . . . . . . . Part Schematics Acquired . | . . . . . . . . . . . . Parts Damaged . | . . . . . . . . . . . . Bothacking | -11 -10 -10 -9 -9 -8 -7 -7 -7 -7 -6 -6 ------------ Run | Yrd Mat Min Mat Min Mat Fac Low Low Dat Pro Fac Used RIF Installer . | . . . . . . . . . . . . Robots Hacked 1 | . . . . . . . . . . . 1 Non-combat . | . . . . . . . . . . . . Combat 1 | . . . . . . . . . . . 1 Robot Hacks Applied . | . . . . . . . . . . . . Relay Couplers Released . | . . . . . . . . . . . . Fabnet Peak Effective % 3 | . . . . . . . . . . 3 3 Autooverrided 1 | . . . . . . . . . . . 1 Robots Rewired 1 | . . . . . . . . . . . 1 Allies Hacked . | . . . . . . . . . . . . Hacks Repelled . | . . . . . . . . . . . . Allies | -11 -10 -10 -9 -9 -8 -7 -7 -7 -7 -6 -6 -------- Run | Yrd Mat Min Mat Min Mat Fac Low Low Dat Pro Fac Total Allies 3 | . . . . . . . . . . 1 2 Largest Group 1 | . . . . . . . . . . 1 1 Highest-Rated Group 96 | . . . . . . . . . . 96 37 Highest-Rated Ally 96 | . . . . . . . . . . 96 37 Total Orders 3 | . . . . . . . . . . . 3 EXPLORE 3 | . . . . . . . . . . . 3 Ally Attacks 13 | . . . . . . . . . . 11 2 Total Damage 496 | . . . . . . . . . . 401 95 Kills 2 | . . . . . . . . . . 2 . Allies Corrupted . | . . . . . . . . . . . . Allies Melted . | . . . . . . . . . . . . Intel | -11 -10 -10 -9 -9 -8 -7 -7 -7 -7 -6 -6 ------- Run | Yrd Mat Min Mat Min Mat Fac Low Low Dat Pro Fac Active Infowar (turns) 3945 | . 480 260 1340 . . . . . . 993 872 T.N.C. 2080 | . 480 260 1340 . . . . . . . . Jamming 1865 | . . . . . . . . . . 993 872 Robot Analysis Total . | . . . . . . . . . . . . Derelict Logs Recovered 4 | . . 1 . . . . . 1 . 2 . Drone Launches 5 | . . . . . . . . . . . 5 Drone Recoveries 2 | . . . . . . . . . . . 2 Exploration | -11 -10 -10 -9 -9 -8 -7 -7 -7 -7 -6 -6 ------------- Run | Yrd Mat Min Mat Min Mat Fac Low Low Dat Pro Fac Turns Passed 13312 | 82 642 260 1879 953 1433 3544 831 352 174 1310 1852 Spaces Moved 5326 | 69 283 136 982 423 406 1323 350 146 78 544 586 Core 33 | 33 . . . . . . . . . . . Treads 5293 | 36 283 136 982 423 406 1323 350 146 78 544 586 Legs . | . . . . . . . . . . . . Wheels . | . . . . . . . . . . . . Hover . | . . . . . . . . . . . . Flight . | . . . . . . . . . . . . Fastest Speed 50 | 50 160 152 155 208 200 225 225 225 225 225 225 Average Speed 205 | 107 160 155 157 208 213 233 225 225 225 225 226 Slowest Speed 320 | 160 160 160 208 208 320 238 225 225 225 225 240 Overloaded Moves . | . . . . . . . . . . . . Propulsion Burnouts . | . . . . . . . . . . . . Robots Hopped . | . . . . . . . . . . . . Potential Cave-ins . | . . . . . . . . . . . . Cave-ins Triggered . | . . . . . . . . . . . . Exploration Rate (%) 43 | 4 50 25 62 79 52 31 48 24 68 64 20 Regions Visited 11 Branch Regions 6 Pre-discovered Areas 2 | . . . . . . . . . 1 1 . Known Exits Taken 3 | . . . . . 1 1 . 1 . . . Unknown Exits Taken 8 | 1 1 1 1 1 . . 1 . 1 1 . Scrap Searched 5 | . . . . 1 . . 1 1 . 2 . Spaces Dug 3 | . . . . . . . . . . . 3 Terrain Destroyed 167 | . . . . . 64 22 . . . 54 27 Melee 3 | . . . . . . . . . . . 3 Projectile 1 | . . . . . . 1 . . . . . AOE 163 | . . . . . 64 21 . . . 54 24 Terrain Rammed . | . . . . . . . . . . . . Walls Destroyed . | . . . . . . . . . . . . Machines Disabled . | . . . . . . . . . . . . Actions | -11 -10 -10 -9 -9 -8 -7 -7 -7 -7 -6 -6 --------- Run | Yrd Mat Min Mat Min Mat Fac Low Low Dat Pro Fac Total 6821 | 75 412 163 1196 454 840 1630 365 155 77 581 873 Wait 760 | . 62 4 88 8 300 198 3 3 . 1 93 Move 5315 | 68 282 135 981 422 405 1322 349 145 77 543 586 Hop . | . . . . . . . . . . . . Pick Up 105 | 1 10 3 25 2 27 10 . . . 1 26 Fast Attach 34 | 5 3 1 8 . 8 8 . . . . 1 Attach 69 | 1 1 . 3 . 18 7 . . . 8 31 Detach 1 | . . . . . . . . . . . 1 Swap 42 | . 2 2 8 . 8 7 . . . 7 8 Drop 46 | . 1 5 18 . 10 10 . . . . 2 Fire 404 | . 45 11 60 21 60 63 13 7 . 21 103 Melee 3 | . . . . . . . . . . . 3 Ram 1 | . . . . . . . . . . . 1 Kick . | . . . . . . . . . . . . Crush 26 | . 6 2 5 1 4 5 . . . . 3 Escape Stasis . | . . . . . . . . . . . . Rewire 15 | . . . . . . . . . . . 15 Trap . | . . . . . . . . . . . . Miscellaneous . | . . . . . . . . . . . . Route ------- -11/Scrapyard -10/Materials (discovered 2 exits: *Mat / *Min) -10/Mines -9/Materials (discovered 2 exits: *Mat / [*Min]) -9/Mines (discovered 2 exits: *Mat x2) -8/Materials (discovered 5 exits: *Fac x3 / *Sto x2) -7/Factory (discovered 3 exits: *Fac / *Low x2) -7/Lower Caves -7/Lower Caves -7/Data Miner -6/Proximity Caves -6/Factory (discovered 3 exits: [*Fac] / Low x2) History --------- Turn | Location | Event 7 | -11/Scrapyard | Discovered new exit (range 14) 83 | -11/Scrapyard | Entered Materials 185 | -10/Materials | Discovered new exit (range 16) 304 | -10/Materials | Build established: Mutant 464 | -10/Materials | Discovered new exit (range 16) 615 | -10/Materials | Repaired Lgt. Treads 642 | -10/Materials | Repaired Lgt. Treads 725 | -10/Materials | Entered Mines 814 | -10/Mines | Discovered new exit (range 6) 830 | -10/Mines | Met a Derelict shopkeep closing up shop 912 | -10/Mines | Met a Derelict who couldn't figure out how to use a Trap Extractor 919 | -10/Mines | Core integrity fell below 50% 985 | -10/Mines | Entered Materials 985 | -9/Materials | Evolved 2 slots: Propulsion x1, Utility x1 1233 | -9/Materials | Discovered new exit (range 15) 1677 | -9/Materials | Discovered new exit (range 16) 2624 | -9/Materials | Build established: Hacker-Mutant 2864 | -9/Materials | Entered Mines 2868 | -9/Mines | Met a Derelict bent on vengeance 3016 | -9/Mines | Discovered new exit (range 15) 3166 | -9/Mines | A weapon hastily lodged in a ceiling crevice suddenly fell to the ground 3604 | -9/Mines | Discovered new exit (range 14) 3817 | -9/Mines | Entered Materials 3817 | -8/Materials | Evolved 2 slots: Utility x1, Weapon x1 3818 | -8/Materials | Identified exit to Storage 3860 | -8/Materials | Identified exit to Factory 3895 | -8/Materials | Discovered exit to Storage (range 3) 4203 | -8/Materials | Build established: Hacker-Gunner 4252 | -8/Materials | Repaired Adv. Treads 4305 | -8/Materials | Repaired Imp. Assault Rifle 4554 | -8/Materials | Lost 8 parts (1p3n4w) 4557 | -8/Materials | Destroyed 10 combat bots 4596 | -8/Materials | Core integrity fell below 50% 5250 | -8/Materials | Entered Factory 5250 | -7/Factory | Evolved 2 slots: Utility x2 5366 | -7/Factory | Identified exit to Lower Caves 5993 | -7/Factory | Build established: Hacker-Tank 6812 | -7/Factory | Discovered new exit (range 14) 6899 | -7/Factory | Central database locked down 6969 | -7/Factory | Build established: Hacker-Gunner 7934 | -7/Factory | Repaired Gauss Rifle+ 7980 | -7/Factory | Repaired Med. Treads 8044 | -7/Factory | Repaired Flak Gun 8089 | -7/Factory | Repaired Imp. Deuterium Engine 8794 | -7/Factory | Entered Lower Caves 9566 | -7/Lower Caves | Discovered new exit (range 9) 9625 | -7/Lower Caves | Entered another Lower Caves area 9627 | -7/Lower Caves | Attracted the attention of an 0b10 checkpoint 9691 | -7/Lower Caves | Identified exit to Data Miner 9972 | -7/Lower Caves | Encountered a Warlord checkpoint 9977 | -7/Lower Caves | Entered Data Miner 9977 | -7/Data Miner | Discovered new exit (range 7) 10020 | -7/Data Miner | Met Data Miner 10063 | -7/Data Miner | Learned location of Section 7 (-2) 10063 | -7/Data Miner | Acquired the access code to Warlord's prototype stash 10101 | -7/Data Miner | Received God Mode back door access code from Data Miner 10151 | -7/Data Miner | Entered Proximity Caves 10174 | -6/Proximity Caves | Core integrity fell below 50% 10365 | -6/Proximity Caves | Spotted B-75 Beast 10403 | -6/Proximity Caves | Escorted by Enhanced Grunt 10411 | -6/Proximity Caves | Destroyed B-75 Beast 10440 | -6/Proximity Caves | Lost 6 parts (1p2n1u2w) 10837 | -6/Proximity Caves | Attracted the attention of an 0b10 checkpoint 11181 | -6/Proximity Caves | Learned Factory security intel 11402 | -6/Proximity Caves | Discovered new exit (range 11) 11461 | -6/Proximity Caves | Entered Factory 11461 | -6/Factory | Evolved 2 slots: Utility x2 11765 | -6/Factory | Build established: Hacker-Tank 12020 | -6/Factory | Discovered new exit (range 10) 12146 | -6/Factory | Identified exit to Lower Caves 12146 | -6/Factory | Watched by a mysterious "MATRIX" hacker 12235 | -6/Factory | Build established: Hacker-Gunner 12677 | -6/Factory | Lost 3 parts (1p2n) 12725 | -6/Factory | Spotted B-75 Beast 12743 | -6/Factory | Destroyed B-75 Beast 12769 | -6/Factory | Lost 3 parts (1n2u) 12842 | -6/Factory | Garrison activated, responded to threat 12957 | -6/Factory | Lost 3 parts (1u2w) 13025 | -6/Factory | Lost 6 parts (1p2n1u2w) 13116 | -6/Factory | Lost 3 parts (1n1u1w) 13220 | -6/Factory | Garrison activated, responded to threat 13285 | -6/Factory | Core integrity fell below 50% 13301 | -6/Factory | Core integrity fell below 20% 13313 | -6/Factory | Destroyed by Y-54 Guardian with Flak Gun Last Messages --------------- U-05 Engineer lays Concrete. Penetrated by Slug. Imp. Salvage Targeting Computer destroyed. Critical hit (Blast). Knocked back. U-05 Engineer builds a Wall. R-10 Processor collects Carbon-fiber Leg. Terminal disabled. U-05 Engineer lays Concrete. U-05 Engineer builds a Wall. U-05 Engineer lays Concrete. K-01 Serf collects debris. U-05 Engineer builds a Door. Imp. Heat Sink destroyed. U-05 Engineer destroyed. U-05 Engineer lays Concrete. Knocked back. U-05 Engineer lays Concrete. The unstable cave ceiling collapses. K-01 Serf collects debris. Map ----- +----------------------------------------------------+ | ?????????????????????# """ """ %"%% # | | ?????????????????????# ^%"" # | | ????????????????###### ! """ # | | ????????????+ % """ # | | ????????????? ##########%####### "" # | | ????????????? ????# % / # #" """ ## | | ????????????? ????# % % / ##### ^""" | | ????????????? ????# #???# %"" | | ######??????# ????# #???# """ | | ?????? ????# #???# | | ?????? ????# % #???# | | ?????? ????# #???## T########### | | ? ?????? #???# ##???####??????# | | ? #??????# #???# %!% #?????????????# " | | ?? #??????# #???# % #"#????????????# "" | | ?? +??????# #???# %% ###????????????# "" | | ??# #??????# #???# %% * #??????????????# | | ??# #??????# #???#######%#############???????# | | ??+ #??????# #???????###%### * #???????# | | ???# #??????# #???????# # #???????# | | ???# ######## ######### T" # #???????#### | | ???# u% %+%""" """ #??????????? | | ???# ############### ## # """ """ #??????????? | | ???# #??????????### R%! # """ """ #??????????? | | ???# #????????### # #= # #??????????? | | ???# ########## H R@% ; * ! #??????????? | | ???# # # "" R R ;;;;;;#####??????????? | | ???# # """ # "G % ;;;;;;#####??????????? | | ???# # """ # ""% k # !/= #?????????? | | ???# # """ # Y% H !/= #?????????? | | ???# + ##### k % /= #?????????? | | ???# # """ ######## % #?????????? | | ???# # """ / + #?????????? | | ???# # """ ######## #u# ;;;;;##;###?????????? | | ???# # #???? =#%#=" ; ! ? ??????????? | | ???#/##########???"""" + + ?????????? | | ??? ???????????#"""" # ###! # """""?"????????? | | ??? ????????????"""" # #??# ##?"""""??????????? | | ??? ?????????????""" +R#??? #??""?????????????? | | ??? ??????????????? # #??? ?????????????????? | | ???"" ??????????????##### #??? #?????????????????? | | ???"" ??????????????????# ?????#?????????????????? | | ???"" ?????????????????? ???????????????????????? | | ????? ??????????????????? ???????????????????????? | | ????? ???????????????????????????????????????????? | | ????? ???????????????????????????????????????????? | | ????? ???????????????????????????????????????????? | | ?????????????????????????????????????????????????? | | ?????????????????????????????????????????????????? | | ?????????????????????????????????????????????????? | +----------------------------------------------------+ Best States ------------- Heat Dissipation 83 Energy Generation 18 Energy Capacity 290 Matter Stores 300 Matter Capacity 300 Sight Range 16 Terrain Scan Density 10 Jamming Range 12 Corruption Block 8 Armor Coverage 225 Evasion (%) 50 Armor Integrity Analysis 30 Recoil Reduction 3 Salvage Targeting 2 Offensive Hacking 20 Defensive Hacking 20 Item Schematics ----------------- Huge Storage Unit | -9/Materials | Hacked Combat Drone Bay | -7/Data Miner | Free Lgt. Regenerative Plating | -7/Data Miner | Free Cld. Aerolev Unit | -7/Data Miner | Free Exp. Utility Shielding | -7/Data Miner | Free Prc. Rocket Launcher | -7/Data Miner | Free Field Propulsion Drive | -7/Data Miner | Free Imp. Medium Treads | -7/Data Miner | Free Hvy. Phase Cannon | -7/Data Miner | Free Adv. VSS Leg | -7/Data Miner | Free Antigrav System | -7/Data Miner | Free Variable Charge Gun | -7/Data Miner | Free Imp. Kinecellerator | -7/Data Miner | Free Robot Schematics ------------------ M-28 Smith | -7/Data Miner | Free M-14 Sweeper | -7/Data Miner | Free E-15 Imp | -7/Data Miner | Free A-15 Conveyor | -7/Data Miner | Free G-50 Soldier | -7/Data Miner | Free Fabricated ------------ Nothing Repaired ---------- Lgt. Treads | 50% | -10/Materials Lgt. Treads | 56% | -10/Materials Adv. Treads | 50% | -8/Materials Imp. Assault Rifle | 15% | -8/Materials Gauss Rifle | 14% | -7/Factory Med. Treads | 32% | -7/Factory Flak Gun | 60% | -7/Factory Imp. Deuterium Engine | 30% | -7/Factory Studied --------- Hvy. Assault Rifle | -9/Materials | Hacked Lgt. Treads | -9/Materials | Hacked Gauss Rifle | -7/Factory | Hacked Flak Gun | -6/Factory | Hacked Alien Tech Used ----------------- None Achievements -------------- None Challenges ------------ None Game ------ Seed RiotNullMultitool Manual? 0 Play Time 01:22:15 Cumulative 247.9 hours Start 2026.09.13 @ 13:43:00 End 2026.09.13 @ 15:27:14 Sessions 1 Manual Loads 0 Difficulty Rogue Special Mode None Game No. 283 Rogue 283 Adventurer 0 Explorer 0 Win Type - Total 2 Types 2/0/0/0/0/0/0/0/0/0 Lore% 31 Gallery% 56 Achievement% 37 Wizard Run 0 Options --------- Layout 1 ASCII 0 Keyboard 0 Movement Numpad Keybinds 0 Fullscreen 2 Font 24/Smallcaps Map View 50x35 Zoom Use 0% Tactical HUD 0 Map Filters NONE Filters NONE Steam 1 RUN: 26964e59-7fc0-4802-8e16-715b8f024f76